[Event "Titled Tuesday Blitz April 25 Early 2023"]
[White "Borgaonkar Akshay"]
[Black "Gukesh D"]
[WhiteFideId "25639110"]
[BlackFideId "46616543"]
[WhiteElo "2063"]
[BlackElo "2612"]
[Result "0-1"]
[Round "03"]
[TimeControl "180+2"]
[Date "2023.04.25"]
[WhiteClock "0:00:02"]
[BlackClock "0:00:44"]

1. e4 {[%clk 0:03:00]}  c5 {[%clk 0:02:59]} 2. Nf3 {[%clk 0:02:59]}  Nc6 {[%clk 0:02:59]} 3. b4 {[%clk 0:02:53]}  cxb4 {[%clk 0:02:55]} 4. d4 {[%clk 0:02:52]}  d6 {[%clk 0:02:36]} 5. a3 {[%clk 0:02:47]}  Nf6 {[%clk 0:02:34]} 6. Bd3 {[%clk 0:02:42]}  e6 {[%clk 0:02:26]} 7. Bd2 {[%clk 0:02:31]}  d5 {[%clk 0:02:23]} 8. e5 {[%clk 0:02:27]}  Ne4 {[%clk 0:02:23]} 9. axb4 {[%clk 0:02:27]}  Nxb4 {[%clk 0:02:19]} 10. O-O {[%clk 0:01:54]}  Nxd3 {[%clk 0:02:16]} 11. cxd3 {[%clk 0:01:55]}  Nxd2 {[%clk 0:02:17]} 12. Nfxd2 {[%clk 0:01:50]}  Be7 {[%clk 0:02:16]} 13. f4 {[%clk 0:01:50]}  O-O {[%clk 0:02:17]} 14. Nc3 {[%clk 0:01:48]}  Bd7 {[%clk 0:02:03]} 15. Rf3 {[%clk 0:01:47]}  g6 {[%clk 0:01:57]} 16. g4 {[%clk 0:01:45]}  f5 {[%clk 0:01:47]} 17. gxf5 {[%clk 0:01:41]}  Rxf5 {[%clk 0:01:47]} 18. Nf1 {[%clk 0:01:37]}  b5 {[%clk 0:01:36]} 19. Ng3 {[%clk 0:01:32]}  Rf7 {[%clk 0:01:35]} 20. Kh1 {[%clk 0:01:28]}  b4 {[%clk 0:01:35]} 21. Nce2 {[%clk 0:01:29]}  a5 {[%clk 0:01:35]} 22. Qd2 {[%clk 0:01:24]}  a4 {[%clk 0:01:34]} 23. f5 {[%clk 0:01:24]}  exf5 {[%clk 0:01:33]} 24. Nf4 {[%clk 0:01:24]}  Qb6 {[%clk 0:01:23]} 25. Nge2 {[%clk 0:00:58]}  a3 {[%clk 0:01:20]} 26. Nxd5 {[%clk 0:00:40]}  Qb7 {[%clk 0:01:19]} 27. Nef4 {[%clk 0:00:26]}  Bc6 {[%clk 0:01:19]} 28. e6 {[%clk 0:00:24]}  Rg7 {[%clk 0:01:15]} 29. Nxe7+ {[%clk 0:00:09]}  Rxe7 {[%clk 0:01:14]} 30. d5 {[%clk 0:00:10]}  Bxd5 {[%clk 0:01:15]} 31. Nxd5 {[%clk 0:00:08]}  Qxd5 {[%clk 0:01:16]} 32. Kg2 {[%clk 0:00:08]}  Rxe6 {[%clk 0:01:05]} 33. Qxb4 {[%clk 0:00:07]}  Re2+ {[%clk 0:01:05]} 34. Kg3 {[%clk 0:00:06]}  Qe5+ {[%clk 0:01:04]} 35. Rf4 {[%clk 0:00:06]}  Qe3+ {[%clk 0:01:01]} 36. Kh4 {[%clk 0:00:02]}  Rxh2+ {[%clk 0:00:51]} 37. Kg5 {[%clk 0:00:02]}  Qe6 {[%clk 0:00:45]} 38. Rh4 {[%clk 0:00:01]}  Rg2+ {[%clk 0:00:44]} 39. Kh6 {[%clk 0:00:01]}  g5+ {[%clk 0:00:44]} 40. Kh5 {[%clk 0:00:02]}  Qg6# {[%clk 0:00:44]} 0-1


[Site "https://www.chess.com"]

[Event "Titled Tuesday Blitz April 25 Early 2023"]
[White "Hambleton, Aman"]
[Black "polandchessplayer"]
[WhiteFideId "2606577"]
[WhiteElo "2511"]
[BlackElo "2607"]
[Result "0-1"]
[Round "03"]
[TimeControl "180+2"]
[Date "2023.04.25"]
[WhiteClock "0:00:01"]
[BlackClock "0:02:07"]

1. d4 {[%clk 0:02:59]}  Nf6 {[%clk 0:02:59]} 2. Bf4 {[%clk 0:02:57]}  d6 {[%clk 0:02:50]} 3. e3 {[%clk 0:02:54]}  g6 {[%clk 0:02:50]} 4. h3 {[%clk 0:02:48]}  Bg7 {[%clk 0:02:50]} 5. Nf3 {[%clk 0:02:45]}  O-O {[%clk 0:02:51]} 6. c3 {[%clk 0:02:44]}  c5 {[%clk 0:02:50]} 7. dxc5 {[%clk 0:02:42]}  dxc5 {[%clk 0:02:50]} 8. Qxd8 {[%clk 0:02:42]}  Rxd8 {[%clk 0:02:50]} 9. Bc7 {[%clk 0:02:43]}  Re8 {[%clk 0:02:40]} 10. Nbd2 {[%clk 0:02:40]}  Nc6 {[%clk 0:02:35]} 11. Bh2 {[%clk 0:02:15]}  b6 {[%clk 0:02:32]} 12. Bb5 {[%clk 0:01:54]}  Bb7 {[%clk 0:02:31]} 13. Ne5 {[%clk 0:01:51]}  Nxe5 {[%clk 0:02:24]} 14. Bxe5 {[%clk 0:00:31]}  Red8 {[%clk 0:02:23]} 15. Bxf6 {[%clk 0:00:23]}  Bxf6 {[%clk 0:02:22]} 16. Rg1 {[%clk 0:00:08]}  a6 {[%clk 0:02:21]} 17. Be2 {[%clk 0:00:07]}  b5 {[%clk 0:02:21]} 18. Bf3 {[%clk 0:00:07]}  Rab8 {[%clk 0:02:20]} 19. Bxb7 {[%clk 0:00:05]}  Rxb7 {[%clk 0:02:21]} 20. Ke2 {[%clk 0:00:05]}  b4 {[%clk 0:02:18]} 21. cxb4 {[%clk 0:00:02]}  Rxb4 {[%clk 0:02:16]} 22. Rab1 {[%clk 0:00:01]}  Bxb2 {[%clk 0:02:14]} 23. Nb3 {[%clk 0:00:02]}  Ba3 {[%clk 0:02:10]} 24. Rgd1 {[%clk 0:00:01]}  Rdb8 {[%clk 0:02:11]} 25. Rd2 {[%clk 0:00:01]}  c4 {[%clk 0:02:11]} 26. Rc2 {[%clk 0:00:01]}  cxb3 {[%clk 0:02:11]} 27. axb3 {[%clk 0:00:02]}  Rxb3 {[%clk 0:02:11]} 28. Ra1 {[%clk 0:00:03]}  Bd6 {[%clk 0:02:09]} 29. Rxa6 {[%clk 0:00:02]}  Rb2 {[%clk 0:02:10]} 30. Rc6 {[%clk 0:00:03]}  Rxc2+ {[%clk 0:02:10]} 31. Rxc2 {[%clk 0:00:04]}  Rb1 {[%clk 0:02:10]} 32. Kf3 {[%clk 0:00:04]}  h5 {[%clk 0:02:09]} 33. g4 {[%clk 0:00:04]}  h4 {[%clk 0:02:09]} 34. Kg2 {[%clk 0:00:04]}  Kg7 {[%clk 0:02:10]} 35. Kf3 {[%clk 0:00:04]}  Rh1 {[%clk 0:02:09]} 36. Kg2 {[%clk 0:00:04]}  Rh2+ {[%clk 0:02:09]} 37. Kg1 {[%clk 0:00:04]}  Rxh3 {[%clk 0:02:08]} 38. Rc4 {[%clk 0:00:03]}  Rf3 {[%clk 0:02:08]} 39. g5 {[%clk 0:00:03]}  Rf5 {[%clk 0:02:08]} 40. Rg4 {[%clk 0:00:02]}  e5 {[%clk 0:02:07]} 41. Kg2 {[%clk 0:00:01]}  Be7 {[%clk 0:02:08]} 42. f4 {[%clk 0:00:01]}  exf4 {[%clk 0:02:09]} 43. exf4 {[%clk 0:00:02]}  Bd6 {[%clk 0:02:09]} 44. Kf3 {[%clk 0:00:02]}  h3 {[%clk 0:02:06]} 45. Rh4 {[%clk 0:00:02]}  h2 {[%clk 0:02:06]} 46. Rxh2 {[%clk 0:00:02]}  Rxf4+ {[%clk 0:02:06]} 47. Kg2 {[%clk 0:00:02]}  Rg4+ {[%clk 0:02:06]} 48. Kh3 {[%clk 0:00:01]}  Bxh2 {[%clk 0:02:07]} 49. Kxg4 {[%clk 0:00:01]}  Bd6 {[%clk 0:02:07]} 0-1


[Site "https://www.chess.com"]

[Event "Titled Tuesday Blitz April 25 Early 2023"]
[White "MaryanKyrychenko"]
[Black "Bryakin, Mikhail"]
[BlackFideId "4165314"]
[WhiteElo "2536"]
[BlackElo "2447"]
[Result "0-1"]
[Round "03"]
[TimeControl "180+2"]
[Date "2023.04.25"]
[WhiteClock "0:00:08"]
[BlackClock "0:00:24"]

1. e4 {[%clk 0:02:59]}  d6 {[%clk 0:02:55]} 2. d4 {[%clk 0:02:59]}  Nf6 {[%clk 0:02:52]} 3. Nc3 {[%clk 0:02:59]}  e5 {[%clk 0:02:52]} 4. dxe5 {[%clk 0:03:00]}  dxe5 {[%clk 0:02:52]} 5. Qxd8+ {[%clk 0:03:01]}  Kxd8 {[%clk 0:02:53]} 6. Bg5 {[%clk 0:03:01]}  c6 {[%clk 0:02:52]} 7. O-O-O+ {[%clk 0:02:59]}  Nd7 {[%clk 0:02:53]} 8. f4 {[%clk 0:02:57]}  Ke8 {[%clk 0:02:46]} 9. Nf3 {[%clk 0:02:48]}  Be7 {[%clk 0:02:40]} 10. fxe5 {[%clk 0:02:42]}  Ng4 {[%clk 0:02:39]} 11. e6 {[%clk 0:02:28]}  fxe6 {[%clk 0:02:27]} 12. Rd2 {[%clk 0:02:29]}  Bxg5 {[%clk 0:02:21]} 13. Nxg5 {[%clk 0:02:28]}  Nde5 {[%clk 0:02:11]} 14. Be2 {[%clk 0:02:22]}  h6 {[%clk 0:01:55]} 15. Nf3 {[%clk 0:02:12]}  Rf8 {[%clk 0:01:48]} 16. h3 {[%clk 0:01:55]}  Nxf3 {[%clk 0:01:45]} 17. gxf3 {[%clk 0:01:49]}  Ne5 {[%clk 0:01:31]} 18. h4 {[%clk 0:01:41]}  Bd7 {[%clk 0:01:24]} 19. Rg1 {[%clk 0:01:29]}  g6 {[%clk 0:01:22]} 20. Rg3 {[%clk 0:01:15]}  Ke7 {[%clk 0:01:18]} 21. Nd1 {[%clk 0:01:08]}  Rf4 {[%clk 0:01:16]} 22. Rh3 {[%clk 0:01:01]}  Raf8 {[%clk 0:01:11]} 23. Rg3 {[%clk 0:00:59]}  R8f6 {[%clk 0:01:10]} 24. Ne3 {[%clk 0:00:52]}  Rxh4 {[%clk 0:01:06]} 25. b3 {[%clk 0:00:46]}  g5 {[%clk 0:01:05]} 26. Rd1 {[%clk 0:00:37]}  Be8 {[%clk 0:01:04]} 27. Kb2 {[%clk 0:00:33]}  Bh5 {[%clk 0:01:03]} 28. Rf1 {[%clk 0:00:29]}  Rh2 {[%clk 0:01:03]} 29. Bd1 {[%clk 0:00:28]}  a5 {[%clk 0:00:55]} 30. Kc3 {[%clk 0:00:27]}  b5 {[%clk 0:00:54]} 31. Kd4 {[%clk 0:00:27]}  Kd6 {[%clk 0:00:53]} 32. a3 {[%clk 0:00:24]}  c5+ {[%clk 0:00:54]} 33. Kc3 {[%clk 0:00:24]}  b4+ {[%clk 0:00:54]} 34. axb4 {[%clk 0:00:24]}  axb4+ {[%clk 0:00:55]} 35. Kb2 {[%clk 0:00:24]}  Ke7 {[%clk 0:00:54]} 36. Kc1 {[%clk 0:00:17]}  Rf8 {[%clk 0:00:52]} 37. Kb2 {[%clk 0:00:17]}  Rd8 {[%clk 0:00:48]} 38. Kc1 {[%clk 0:00:17]}  Ra8 {[%clk 0:00:46]} 39. Kb2 {[%clk 0:00:17]}  Rd8 {[%clk 0:00:46]} 40. Kc1 {[%clk 0:00:17]}  Rd4 {[%clk 0:00:44]} 41. Kb2 {[%clk 0:00:17]}  Nd3+ {[%clk 0:00:44]} 42. Kb1 {[%clk 0:00:15]}  Nf4 {[%clk 0:00:45]} 43. Re1 {[%clk 0:00:14]}  Bg6 {[%clk 0:00:43]} 44. Ng4 {[%clk 0:00:14]}  Rh4 {[%clk 0:00:43]} 45. Ne5 {[%clk 0:00:13]}  Be8 {[%clk 0:00:43]} 46. Be2 {[%clk 0:00:13]}  Rh2 {[%clk 0:00:40]} 47. Bc4 {[%clk 0:00:13]}  Rdd2 {[%clk 0:00:39]} 48. Nd3 {[%clk 0:00:09]}  Rxc2 {[%clk 0:00:37]} 49. Nxc5 {[%clk 0:00:10]}  Rb2+ {[%clk 0:00:34]} 50. Kc1 {[%clk 0:00:10]}  Rhc2+ {[%clk 0:00:33]} 51. Kd1 {[%clk 0:00:10]}  Rc3 {[%clk 0:00:28]} 52. Rgg1 {[%clk 0:00:09]}  Bh5 {[%clk 0:00:25]} 53. Na4 {[%clk 0:00:08]}  Bxf3+ {[%clk 0:00:24]} 0-1


[Site "https://www.chess.com"]

[Event "Titled Tuesday Blitz April 25 Early 2023"]
[White "Torres Dominguez, David"]
[Black "Cherniaiev, Tykhon"]
[WhiteFideId "2220857"]
[BlackFideId "14182360"]
[WhiteElo "1999"]
[BlackElo "2450"]
[Result "0-1"]
[Round "03"]
[TimeControl "180+2"]
[Date "2023.04.25"]
[WhiteClock "0:00:14"]
[BlackClock "0:00:34"]

1. e4 {[%clk 0:02:58]}  e5 {[%clk 0:02:59]} 2. Bc4 {[%clk 0:02:53]}  Nf6 {[%clk 0:02:58]} 3. Nc3 {[%clk 0:02:53]}  Bc5 {[%clk 0:02:57]} 4. d3 {[%clk 0:02:53]}  d6 {[%clk 0:02:57]} 5. f4 {[%clk 0:02:53]}  Bg4 {[%clk 0:02:56]} 6. Nf3 {[%clk 0:02:54]}  Nc6 {[%clk 0:02:56]} 7. Na4 {[%clk 0:02:54]}  Bb6 {[%clk 0:02:49]} 8. Nxb6 {[%clk 0:02:54]}  axb6 {[%clk 0:02:50]} 9. h3 {[%clk 0:02:53]}  Bxf3 {[%clk 0:02:46]} 10. Qxf3 {[%clk 0:02:54]}  Nd4 {[%clk 0:02:47]} 11. Qf2 {[%clk 0:02:53]}  b5 {[%clk 0:02:47]} 12. Bb3 {[%clk 0:02:38]}  Nxb3 {[%clk 0:02:39]} 13. cxb3 {[%clk 0:02:37]}  c6 {[%clk 0:02:31]} 14. fxe5 {[%clk 0:02:36]}  dxe5 {[%clk 0:02:30]} 15. O-O {[%clk 0:02:35]}  h6 {[%clk 0:02:18]} 16. Qf3 {[%clk 0:02:24]}  Qd6 {[%clk 0:02:08]} 17. Kh1 {[%clk 0:01:58]}  Rd8 {[%clk 0:02:01]} 18. Be3 {[%clk 0:01:29]}  O-O {[%clk 0:01:30]} 19. Rad1 {[%clk 0:01:29]}  Nh7 {[%clk 0:01:03]} 20. Qg3 {[%clk 0:01:26]}  Kh8 {[%clk 0:01:01]} 21. Rf3 {[%clk 0:01:21]}  Qe6 {[%clk 0:00:52]} 22. Rdf1 {[%clk 0:01:20]}  f6 {[%clk 0:00:44]} 23. Bc5 {[%clk 0:01:13]}  Rf7 {[%clk 0:00:44]} 24. Qf2 {[%clk 0:01:03]}  Rfd7 {[%clk 0:00:43]} 25. Qg3 {[%clk 0:01:00]}  Ng5 {[%clk 0:00:42]} 26. Re3 {[%clk 0:00:59]}  Qf7 {[%clk 0:00:40]} 27. Kg1 {[%clk 0:00:57]}  Ne6 {[%clk 0:00:39]} 28. Ref3 {[%clk 0:00:48]}  Nxc5 {[%clk 0:00:39]} 29. Qxe5 {[%clk 0:00:41]}  fxe5 {[%clk 0:00:38]} 30. Rxf7 {[%clk 0:00:40]}  Rxf7 {[%clk 0:00:39]} 31. Rxf7 {[%clk 0:00:41]}  Rxd3 {[%clk 0:00:39]} 32. Rf8+ {[%clk 0:00:38]}  Kh7 {[%clk 0:00:39]} 33. Re8 {[%clk 0:00:39]}  Rd1+ {[%clk 0:00:37]} 34. Kh2 {[%clk 0:00:39]}  Nxe4 {[%clk 0:00:36]} 35. Rxe5 {[%clk 0:00:39]}  Nf6 {[%clk 0:00:35]} 36. Re7 {[%clk 0:00:38]}  Rd2 {[%clk 0:00:35]} 37. Rxb7 {[%clk 0:00:36]}  Rxb2 {[%clk 0:00:36]} 38. Ra7 {[%clk 0:00:35]}  Nd5 {[%clk 0:00:36]} 39. a4 {[%clk 0:00:23]}  Rxb3 {[%clk 0:00:35]} 40. a5 {[%clk 0:00:23]}  Ra3 {[%clk 0:00:35]} 41. Ra8 {[%clk 0:00:19]}  b4 {[%clk 0:00:34]} 42. a6 {[%clk 0:00:19]}  Nc7 {[%clk 0:00:35]} 43. Rc8 {[%clk 0:00:15]}  Nxa6 {[%clk 0:00:33]} 44. Rxc6 {[%clk 0:00:15]}  b3 {[%clk 0:00:34]} 45. Rb6 {[%clk 0:00:15]}  Nc5 {[%clk 0:00:33]} 46. Rb5 {[%clk 0:00:15]}  Na4 {[%clk 0:00:34]} 47. Rb4 {[%clk 0:00:14]}  b2 {[%clk 0:00:34]} 48. h4 {[%clk 0:00:14]}  Ra1 {[%clk 0:00:34]} 0-1


[Site "https://www.chess.com"]

[Event "Titled Tuesday Blitz April 25 Early 2023"]
[White "Goldin, Roman"]
[Black "Sarana, Alexey"]
[WhiteFideId "2803860"]
[BlackFideId "24133795"]
[WhiteElo "2312"]
[BlackElo "2714"]
[Result "0-1"]
[Round "03"]
[TimeControl "180+2"]
[Date "2023.04.25"]
[WhiteClock "0:00:01"]
[BlackClock "0:00:09"]

1. e4 {[%clk 0:02:59]}  c5 {[%clk 0:02:55]} 2. Nf3 {[%clk 0:02:59]}  d6 {[%clk 0:02:56]} 3. Bc4 {[%clk 0:02:58]}  Nf6 {[%clk 0:02:56]} 4. e5 {[%clk 0:02:58]}  dxe5 {[%clk 0:02:55]} 5. Nxe5 {[%clk 0:02:59]}  e6 {[%clk 0:02:55]} 6. Qe2 {[%clk 0:02:59]}  a6 {[%clk 0:02:51]} 7. a4 {[%clk 0:02:58]}  Bd6 {[%clk 0:02:52]} 8. f4 {[%clk 0:02:58]}  O-O {[%clk 0:02:51]} 9. d3 {[%clk 0:02:59]}  Bd7 {[%clk 0:02:50]} 10. Nd2 {[%clk 0:02:55]}  Nc6 {[%clk 0:02:51]} 11. Ndf3 {[%clk 0:02:54]}  Qc7 {[%clk 0:02:51]} 12. O-O {[%clk 0:02:44]}  Rae8 {[%clk 0:02:45]} 13. Bd2 {[%clk 0:02:43]}  Nd5 {[%clk 0:02:43]} 14. Rae1 {[%clk 0:02:35]}  Nd4 {[%clk 0:02:39]} 15. Nxd4 {[%clk 0:02:34]}  cxd4 {[%clk 0:02:39]} 16. a5 {[%clk 0:02:31]}  Bb5 {[%clk 0:02:31]} 17. Bb3 {[%clk 0:02:22]}  Ne3 {[%clk 0:02:27]} 18. Bxe3 {[%clk 0:02:21]}  dxe3 {[%clk 0:02:28]} 19. Qxe3 {[%clk 0:02:07]}  Bc5 {[%clk 0:02:27]} 20. d4 {[%clk 0:02:08]}  Bxf1 {[%clk 0:02:27]} 21. Rxf1 {[%clk 0:02:01]}  Ba7 {[%clk 0:02:24]} 22. c3 {[%clk 0:01:58]}  Kh8 {[%clk 0:02:04]} 23. f5 {[%clk 0:01:50]}  Qe7 {[%clk 0:00:52]} 24. fxe6 {[%clk 0:01:38]}  fxe6 {[%clk 0:00:51]} 25. Rxf8+ {[%clk 0:01:02]}  Rxf8 {[%clk 0:00:47]} 26. Ng6+ {[%clk 0:00:18]}  hxg6 {[%clk 0:00:47]} 27. Qh3+ {[%clk 0:00:19]}  Kg8 {[%clk 0:00:48]} 28. Bxe6+ {[%clk 0:00:19]}  Rf7 {[%clk 0:00:48]} 29. Bxf7+ {[%clk 0:00:15]}  Kxf7 {[%clk 0:00:49]} 30. Qf3+ {[%clk 0:00:13]}  Ke8 {[%clk 0:00:49]} 31. g3 {[%clk 0:00:07]}  Bb8 {[%clk 0:00:49]} 32. Qd5 {[%clk 0:00:06]}  Bd6 {[%clk 0:00:40]} 33. Qg8+ {[%clk 0:00:06]}  Kd7 {[%clk 0:00:40]} 34. Qd5 {[%clk 0:00:06]}  Kc7 {[%clk 0:00:40]} 35. c4 {[%clk 0:00:05]}  Qe1+ {[%clk 0:00:39]} 36. Kg2 {[%clk 0:00:05]}  Qe2+ {[%clk 0:00:39]} 37. Kh3 {[%clk 0:00:05]}  Qf1+ {[%clk 0:00:36]} 38. Kg4 {[%clk 0:00:02]}  Qe2+ {[%clk 0:00:34]} 39. Kh3 {[%clk 0:00:03]}  Be7 {[%clk 0:00:20]} 40. Qf7 {[%clk 0:00:03]}  Kd7 {[%clk 0:00:11]} 41. Qxg6 {[%clk 0:00:02]}  Qxc4 {[%clk 0:00:09]} 42. Qf5+ {[%clk 0:00:01]}  Qe6 {[%clk 0:00:09]} 0-1


[Site "https://www.chess.com"]

[Event "Titled Tuesday Blitz April 25 Early 2023"]
[White "Arpita, Mukherjee"]
[Black "Grigoriants, Sergey"]
[WhiteFideId "5056403"]
[BlackFideId "4130804"]
[WhiteElo "2129"]
[BlackElo "2502"]
[Result "0-1"]
[Round "03"]
[TimeControl "180+2"]
[Date "2023.04.25"]
[WhiteClock "0:00:01"]
[BlackClock "0:00:21"]

1. e4 {[%clk 0:03:00]}  c6 {[%clk 0:02:51]} 2. d4 {[%clk 0:02:59]}  d5 {[%clk 0:02:51]} 3. e5 {[%clk 0:03:00]}  Bf5 {[%clk 0:02:46]} 4. Nf3 {[%clk 0:02:58]}  e6 {[%clk 0:02:47]} 5. Be2 {[%clk 0:02:57]}  Ne7 {[%clk 0:02:47]} 6. O-O {[%clk 0:02:56]}  c5 {[%clk 0:02:47]} 7. dxc5 {[%clk 0:02:49]}  Nec6 {[%clk 0:02:46]} 8. Nd4 {[%clk 0:02:40]}  Bg6 {[%clk 0:02:18]} 9. Nb3 {[%clk 0:01:54]}  Nd7 {[%clk 0:02:12]} 10. f4 {[%clk 0:01:54]}  Nxc5 {[%clk 0:02:12]} 11. Be3 {[%clk 0:01:40]}  Na4 {[%clk 0:01:57]} 12. Qc1 {[%clk 0:01:23]}  Be7 {[%clk 0:01:48]} 13. c3 {[%clk 0:01:23]}  O-O {[%clk 0:01:47]} 14. N1d2 {[%clk 0:01:23]}  Rc8 {[%clk 0:01:46]} 15. Nf3 {[%clk 0:01:18]}  a6 {[%clk 0:01:19]} 16. Qd2 {[%clk 0:01:04]}  b5 {[%clk 0:01:16]} 17. Rad1 {[%clk 0:00:54]}  Qc7 {[%clk 0:01:15]} 18. Nfd4 {[%clk 0:00:49]}  Be4 {[%clk 0:01:08]} 19. Bd3 {[%clk 0:00:41]}  Bxd3 {[%clk 0:01:04]} 20. Qxd3 {[%clk 0:00:42]}  Nxb2 {[%clk 0:01:04]} 21. Qe2 {[%clk 0:00:32]}  Nxd1 {[%clk 0:01:04]} 22. Rxd1 {[%clk 0:00:33]}  Nxd4 {[%clk 0:01:03]} 23. Bxd4 {[%clk 0:00:32]}  b4 {[%clk 0:00:54]} 24. cxb4 {[%clk 0:00:23]}  Bxb4 {[%clk 0:00:52]} 25. f5 {[%clk 0:00:19]}  Qc2 {[%clk 0:00:47]} 26. Qh5 {[%clk 0:00:13]}  Qxf5 {[%clk 0:00:46]} 27. Qxf5 {[%clk 0:00:07]}  exf5 {[%clk 0:00:46]} 28. Bb6 {[%clk 0:00:07]}  Rc6 {[%clk 0:00:39]} 29. Be3 {[%clk 0:00:04]}  Rc2 {[%clk 0:00:26]} 30. Rxd5 {[%clk 0:00:02]}  Rxa2 {[%clk 0:00:26]} 31. Rd7 {[%clk 0:00:03]}  Ra3 {[%clk 0:00:26]} 32. Rd3 {[%clk 0:00:02]}  a5 {[%clk 0:00:22]} 33. Nc1 {[%clk 0:00:01]}  Rxd3 {[%clk 0:00:21]} 34. Nxd3 {[%clk 0:00:01]}  Rd8 {[%clk 0:00:21]} 0-1


[Site "https://www.chess.com"]

[Event "Titled Tuesday Blitz April 25 Early 2023"]
[White "Henriquez Villagra, Cristobal"]
[Black "Principe, Gerson"]
[WhiteFideId "3409350"]
[BlackFideId "3804550"]
[WhiteElo "2542"]
[BlackElo "2229"]
[Result "1-0"]
[Round "03"]
[TimeControl "180+2"]
[Date "2023.04.25"]
[WhiteClock "0:00:25"]
[BlackClock "0:00:05"]

1. g3 {[%clk 0:03:00]}  d5 {[%clk 0:02:59]} 2. Bg2 {[%clk 0:03:00]}  Nf6 {[%clk 0:02:59]} 3. d3 {[%clk 0:02:59]}  e6 {[%clk 0:02:58]} 4. f4 {[%clk 0:02:59]}  Be7 {[%clk 0:02:58]} 5. Nf3 {[%clk 0:02:59]}  O-O {[%clk 0:02:59]} 6. O-O {[%clk 0:03:00]}  c5 {[%clk 0:02:59]} 7. Qe1 {[%clk 0:02:57]}  Nc6 {[%clk 0:02:59]} 8. e4 {[%clk 0:02:55]}  b5 {[%clk 0:02:55]} 9. a4 {[%clk 0:02:42]}  b4 {[%clk 0:02:52]} 10. e5 {[%clk 0:02:33]}  Nd7 {[%clk 0:02:50]} 11. Nbd2 {[%clk 0:02:29]}  Ba6 {[%clk 0:02:43]} 12. b3 {[%clk 0:02:18]}  Na5 {[%clk 0:02:37]} 13. Rf2 {[%clk 0:02:06]}  Rc8 {[%clk 0:02:29]} 14. Bh3 {[%clk 0:01:15]}  g6 {[%clk 0:02:13]} 15. Ng5 {[%clk 0:01:13]}  c4 {[%clk 0:02:00]} 16. d4 {[%clk 0:01:07]}  cxb3 {[%clk 0:01:58]} 17. cxb3 {[%clk 0:01:08]}  Qb6 {[%clk 0:01:35]} 18. Bb2 {[%clk 0:01:05]}  Rc2 {[%clk 0:01:26]} 19. Ndf3 {[%clk 0:00:57]}  Rfc8 {[%clk 0:01:24]} 20. g4 {[%clk 0:00:43]}  Nxb3 {[%clk 0:01:20]} 21. Rd1 {[%clk 0:00:43]}  h6 {[%clk 0:00:52]} 22. Nxf7 {[%clk 0:00:39]}  Kxf7 {[%clk 0:00:52]} 23. f5 {[%clk 0:00:39]}  Kg8 {[%clk 0:00:34]} 24. fxg6 {[%clk 0:00:38]}  Nf8 {[%clk 0:00:32]} 25. Qe3 {[%clk 0:00:38]}  Rxf2 {[%clk 0:00:29]} 26. Kxf2 {[%clk 0:00:38]}  Rc2+ {[%clk 0:00:28]} 27. Kg3 {[%clk 0:00:37]}  Bg5 {[%clk 0:00:24]} 28. Qxb3 {[%clk 0:00:34]}  Qc7 {[%clk 0:00:11]} 29. Bf1 {[%clk 0:00:33]}  Bxf1 {[%clk 0:00:10]} 30. Rxf1 {[%clk 0:00:34]}  Nxg6 {[%clk 0:00:09]} 31. h4 {[%clk 0:00:28]}  Bf4+ {[%clk 0:00:06]} 32. Kh3 {[%clk 0:00:29]}  Qe7 {[%clk 0:00:05]} 33. Qxc2 {[%clk 0:00:25]} 1-0


[Site "https://www.chess.com"]

[Event "Titled Tuesday Blitz April 25 Early 2023"]
[White "demon64fields"]
[Black "Padmini, Rout"]
[BlackFideId "5029295"]
[WhiteElo "2877"]
[BlackElo "2314"]
[Result "1-0"]
[Round "03"]
[TimeControl "180+2"]
[Date "2023.04.25"]
[WhiteClock "0:00:44"]
[BlackClock "0:00:04"]

1. Nf3 {[%clk 0:02:58]}  c5 {[%clk 0:02:58]} 2. g3 {[%clk 0:02:59]}  Nc6 {[%clk 0:02:49]} 3. Bg2 {[%clk 0:02:59]}  e5 {[%clk 0:02:39]} 4. c4 {[%clk 0:02:59]}  Nf6 {[%clk 0:02:38]} 5. O-O {[%clk 0:02:59]}  g6 {[%clk 0:02:35]} 6. Nc3 {[%clk 0:02:59]}  Bg7 {[%clk 0:02:35]} 7. d3 {[%clk 0:02:59]}  O-O {[%clk 0:02:35]} 8. Ne1 {[%clk 0:02:55]}  d6 {[%clk 0:02:33]} 9. Nc2 {[%clk 0:02:55]}  Be6 {[%clk 0:02:20]} 10. Bg5 {[%clk 0:02:54]}  Qd7 {[%clk 0:02:20]} 11. Bxf6 {[%clk 0:02:54]}  Bxf6 {[%clk 0:02:20]} 12. Ne3 {[%clk 0:02:55]}  Bh3 {[%clk 0:02:19]} 13. Ned5 {[%clk 0:02:55]}  Bd8 {[%clk 0:02:18]} 14. a3 {[%clk 0:02:54]}  Bxg2 {[%clk 0:02:16]} 15. Kxg2 {[%clk 0:02:55]}  f5 {[%clk 0:02:17]} 16. e3 {[%clk 0:02:52]}  Kh8 {[%clk 0:02:00]} 17. b4 {[%clk 0:02:52]}  cxb4 {[%clk 0:01:47]} 18. axb4 {[%clk 0:02:53]}  Bf6 {[%clk 0:01:20]} 19. Qa4 {[%clk 0:02:49]}  Bg7 {[%clk 0:01:18]} 20. b5 {[%clk 0:02:49]}  Ne7 {[%clk 0:01:14]} 21. b6 {[%clk 0:02:48]}  Nc6 {[%clk 0:01:12]} 22. Nb5 {[%clk 0:02:39]}  a6 {[%clk 0:01:05]} 23. Nbc7 {[%clk 0:02:31]}  Rad8 {[%clk 0:01:00]} 24. f4 {[%clk 0:02:27]}  exf4 {[%clk 0:00:58]} 25. gxf4 {[%clk 0:02:28]}  Bxa1 {[%clk 0:00:58]} 26. Qxa1+ {[%clk 0:02:29]}  Qg7 {[%clk 0:00:58]} 27. Ne6 {[%clk 0:02:22]}  Qxa1 {[%clk 0:00:54]} 28. Rxa1 {[%clk 0:02:23]}  Rfe8 {[%clk 0:00:54]} 29. Nxd8 {[%clk 0:02:22]}  Nxd8 {[%clk 0:00:52]} 30. Kf3 {[%clk 0:02:21]}  Ne6 {[%clk 0:00:52]} 31. h4 {[%clk 0:02:21]}  Nc5 {[%clk 0:00:51]} 32. Ra3 {[%clk 0:02:18]}  Kg7 {[%clk 0:00:50]} 33. Nc7 {[%clk 0:02:14]}  Re7 {[%clk 0:00:49]} 34. d4 {[%clk 0:01:53]}  Ne4 {[%clk 0:00:46]} 35. Ke2 {[%clk 0:01:47]}  Kh6 {[%clk 0:00:45]} 36. Rb3 {[%clk 0:01:38]}  Kh5 {[%clk 0:00:30]} 37. Nxa6 {[%clk 0:01:38]}  Kxh4 {[%clk 0:00:30]} 38. c5 {[%clk 0:01:38]}  dxc5 {[%clk 0:00:25]} 39. Nxc5 {[%clk 0:01:31]}  Nd6 {[%clk 0:00:22]} 40. Nd3 {[%clk 0:01:20]}  Kg3 {[%clk 0:00:20]} 41. Ne5 {[%clk 0:01:18]}  h5 {[%clk 0:00:18]} 42. Rb1 {[%clk 0:01:17]}  h4 {[%clk 0:00:17]} 43. Rg1+ {[%clk 0:01:15]}  Kh3 {[%clk 0:00:16]} 44. Rh1+ {[%clk 0:01:02]}  Kg3 {[%clk 0:00:16]} 45. Rxh4 {[%clk 0:01:03]}  Nc4 {[%clk 0:00:11]} 46. Rh6 {[%clk 0:01:01]}  Nxe5 {[%clk 0:00:10]} 47. dxe5 {[%clk 0:01:02]}  Re6 {[%clk 0:00:10]} 48. Kd3 {[%clk 0:00:56]}  Rxb6 {[%clk 0:00:10]} 49. Kd4 {[%clk 0:00:57]}  Kf3 {[%clk 0:00:09]} 50. Kd5 {[%clk 0:00:57]}  Rb5+ {[%clk 0:00:08]} 51. Kd6 {[%clk 0:00:57]}  Kxe3 {[%clk 0:00:07]} 52. e6 {[%clk 0:00:57]}  Rb6+ {[%clk 0:00:07]} 53. Kd7 {[%clk 0:00:58]}  Rb4 {[%clk 0:00:06]} 54. e7 {[%clk 0:00:57]}  Rd4+ {[%clk 0:00:06]} 55. Ke8 {[%clk 0:00:57]}  Kxf4 {[%clk 0:00:06]} 56. Rxg6 {[%clk 0:00:56]}  Re4 {[%clk 0:00:06]} 57. Kf7 {[%clk 0:00:56]}  Rxe7+ {[%clk 0:00:05]} 58. Kxe7 {[%clk 0:00:57]}  Ke5 {[%clk 0:00:05]} 59. Re6+ {[%clk 0:00:53]}  Kd5 {[%clk 0:00:05]} 60. Kf6 {[%clk 0:00:52]}  b5 {[%clk 0:00:04]} 61. Kxf5 {[%clk 0:00:52]}  b4 {[%clk 0:00:05]} 62. Rb6 {[%clk 0:00:43]}  Kc4 {[%clk 0:00:04]} 63. Ke4 {[%clk 0:00:43]}  b3 {[%clk 0:00:04]} 64. Rc6+ {[%clk 0:00:44]}  Kb4 {[%clk 0:00:04]} 65. Kd3 {[%clk 0:00:44]}  Ka3 {[%clk 0:00:03]} 66. Kc3 {[%clk 0:00:44]}  b2 {[%clk 0:00:04]} 67. Ra6# {[%clk 0:00:44]} 1-0


[Site "https://www.chess.com"]